[Event "XXVII RUS-chT Women 2020"]
[Site "Sochi"]
[Date "2020.11.22"]
[Round "4.24"]
[White "Tinina, Kristina"]
[Black "Absalyamova, Karina"]
[Result "1-0"]
[ECO "C10"]
[WhiteElo "1678"]
[BlackElo "1884"]
[Annotator "NA"]
[PlyCount "115"]
[EventDate "2020.11.19"]
[EventType "team-tourn"]
[EventCountry "RUS"]
[SourceTitle "playchess.com"]
[Source "ChessBase"]
[SourceQuality "1"]
[TimeControl "40/5400+30:1800+30"]

1. e4 {[%emt 0:00:00]} e6 {[%emt 0:00:00]} 2. d4 {[%emt 0:00:00]} d5 {[%emt 0:00:00]} 3. Nc3 {[%emt 0:00:21]} dxe4 {[%emt 0:00:00]} 4. Nxe4 {[%emt 0:00:24]} Bd7 {[%emt 0:00:05]} 5. Nf3 {[%emt 0:09:12]} Bc6 {[%emt 0:00:30]} 6. Bd3 {[%emt 0:00:28]} Nd7 {[%emt 0:00:08]} 7. c3 {[%emt 0:06:58]} Ngf6 {[%emt 0:00:42]} 8. Nxf6+ {[%emt 0:07:30]} Nxf6 {[%emt 0:00:58]} 9. Qe2 {[%emt 0:01:25]} Bxf3 {[%emt 0:15:14]} 10. Qxf3 {[%emt 0:01:23]} Qd5 {[%emt 0:01:41]} 11. Qxd5 {[%emt 0:18:36]} Nxd5 {[%emt 0:00:15]} 12. O-O {[%emt 0:05:28]} O-O-O {[%emt 0:00:35]} 13. Be4 {[%emt 0:06:27]} Be7 {[%emt 0:02:06]} 14. Be3 {[%emt 0:11:34]} f5 {[%emt 0:09:43]} 15. Bf3 {[%emt 0:02:24]} g5 {[%emt 0:00:23]} 16. Rae1 {[%emt 0:05:24]} g4 {[%emt 0:07:03]} 17. Bxd5 {[%emt 0:01:37]} Rxd5 {[%emt 0:09:12]} 18. Bf4 {[%emt 0:02:30]} Kd7 {[%emt 0:01:05]} 19. c4 {[%emt 0:03:41]} Ra5 {[%emt 0:00:05]} 20. a3 {[%emt 0:00:10]} Bf6 {[%emt 0:06:25]} 21. Rd1 {[%emt 0:02:14]} Rg8 {[%emt 0:11:33]} 22. Rfe1 {[%emt 0:01:22]} Bg5 {[%emt 0:01:03]} 23. Be5 {[%emt 0:00:43]} Rg6 {[%emt 0:01:48]} 24. Rd3 {[%emt 0:00:40]} Bf6 {[%emt 0:07:51]} 25. Bf4 {[%emt 0:01:54]} Bg5 {[%emt 0:00:46]} 26. Be5 {[%emt 0:00:04]} Bf6 {[%emt 0:00:09]} 27. Bf4 {[%emt 0:05:54]} Bg5 {[%emt 0:01:50]} 28. b4 {[%emt 0:00:58]} Ra6 {[%emt 0:00:24]} 29. b5 {[%emt 0:00:03]} Ra4 {[%emt 0:00:04]} 30. Bxg5 {[%emt 0:00:13]} Rxg5 {[%emt 0:00:20]} 31. d5 {[%emt 0:00:32]} e5 {[%emt 0:00:55]} 32. c5 {[%emt 0:01:30]} Rc4 {[%emt 0:02:03]} 33. c6+ {[%emt 0:00:14]} Kd6 {[%emt 0:04:05]} 34. g3 {[%emt 0:03:38]} b6 {[%emt 0:01:30]} 35. Kg2 {[%emt 0:00:25]} e4 {[%emt 0:01:36]} 36. Rd2 {[%emt 0:00:04]} Rg7 {[%emt 0:00:30]} 37. h3 {[%emt 0:01:10]} Rc3 {[%emt 0:04:59]} 38. hxg4 {[%emt 0:00:14]} Rxg4 {[%emt 0:01:28]} 39. Rh1 {[%emt 0:00:16]} Rg7 {[%emt 0:04:15]} 40. Rh6+ {[%emt 0:00:00]} Kc5 {[%emt 0:00:00]} 41. Rh5 {[%emt 0:11:47]} Rd3 {[%emt 0:11:55]} 42. Rc2+ {[%emt 0:03:17]} Kxd5 {[%emt 0:01:22]} 43. Rxf5+ {[%emt 0:00:09]} Ke6 {[%emt 0:03:59]} 44. Rf4 {[%emt 0:00:59]} Rxa3 {[%emt 0:00:12]} 45. Rxe4+ {[%emt 0:01:01]} Kd5 {[%emt 0:00:36]} 46. Re8 {[%emt 0:02:04]} Rb3 {[%emt 0:01:59]} 47. Rd2+ {[%emt 0:02:13]} Kc4 {[%emt 0:01:14]} 48. Rd7 {[%emt 0:00:32]} Rg6 {[%emt 0:01:42]} 49. Rxc7 {[%emt 0:01:35]} Kxb5 {[%emt 0:00:20]} 50. Re5+ Ka6 {[%emt 0:01:27]} 51. Ree7 {[%emt 0:01:09]} b5 {[%emt 0:02:11]} 52. Rxa7+ {[%emt 0:01:36]} Kb6 {[%emt 0:00:04]} 53. c7 {[%emt 0:01:32]} Rc3 {[%emt 0:00:59]} 54. Rxh7 {[%emt 0:02:07]} b4 {[%emt 0:00:54]} 55. Ra8 {[%emt 0:02:33]} Rgc6 {[%emt 0:04:41]} 56. Rb8+ {[%emt 0:00:32]} Ka5 {[%emt 0:02:19]} 57. c8=Q {[%emt 0:00:43]} Rxc8 {[%emt 0:00:06]} 58. Ra7# {[%emt 0:00:07]} 1-0

[Event "XXVII RUS-chT Women 2020"]
[Site "Sochi"]
[Date "2020.11.23"]
[Round "5.20"]
[White "Absalyamova, Karina"]
[Black "Lesnykh, Zhanna"]
[Result "0-1"]
[ECO "A89"]
[WhiteElo "1884"]
[BlackElo "1755"]
[Annotator "NA"]
[PlyCount "84"]
[EventDate "2020.11.19"]
[EventType "team-tourn"]
[EventCountry "RUS"]
[SourceTitle "playchess.com"]
[Source "ChessBase"]
[SourceQuality "1"]
[TimeControl "40/5400+30:1800+30"]

1. d4 {[%emt 0:00:00]} f5 {[%emt 0:00:00]} 2. c4 {[%emt 0:00:00]} Nf6 {[%emt 0:00:00]} 3. g3 {[%emt 0:00:00]} g6 {[%emt 0:00:00]} 4. Bg2 {[%emt 0:00:00]} Bg7 {[%emt 0:00:00]} 5. Nf3 {[%emt 0:00:02]} O-O $11 {[%emt 0:00:00]} 6. Nc3 {[%emt 0:00:06]} d6 {[%emt 0:00:00]} 7. O-O {[%emt 0:00:26]} Nc6 {[%emt 0:00:01]} 8. Rb1 {[%emt 0:01:03]} e5 {[%emt 0:02:32]} 9. dxe5 {[%emt 0:07:16]} dxe5 {[%emt 0:00:12]} 10. Qxd8 {[%emt 0:00:20]} Rxd8 {[%emt 0:00:05]} 11. Nb5 {[%emt 0:00:15]} Ne8 {[%emt 0:10:05]} 12. Ng5 {[%emt 0:11:49]} Ne7 {[%emt 0:07:38]} 13. b3 {[%emt 0:04:00]} h6 {[%emt 0:03:30]} 14. Ba3 {[%emt 0:04:52]} Bf6 {[%emt 0:01:26]} 15. Nh3 {[%emt 0:10:26]} c6 {[%emt 0:04:01]} 16. Nc3 {[%emt 0:01:25]} e4 {[%emt 0:03:43]} 17. Na4 {[%emt 0:08:34]} Rd2 {[%emt 0:16:13]} 18. Rfd1 {[%emt 0:06:31]} Rxa2 {[%emt 0:02:49]} 19. Bb4 {[%emt 0:00:33]} Rc2 {[%emt 0:16:22]} 20. f3 {[%emt 0:30:22]} b5 {[%emt 0:07:22]} 21. Nc5 bxc4 {[%emt 0:10:05]} 22. fxe4 {[%emt 0:03:18]} Rb8 {[%emt 0:03:11]} 23. bxc4 {[%emt 0:01:26]} Rxc4 {[%emt 0:00:59]} 24. Ba3 {[%emt 0:00:06]} Rxb1 {[%emt 0:00:48]} 25. Rxb1 {[%emt 0:00:02]} Bd4+ {[%emt 0:00:20]} 26. Kf1 {[%emt 0:01:07]} Bxc5 {[%emt 0:00:07]} 27. Bc1 {[%emt 0:00:07]} fxe4 {[%emt 0:01:47]} 28. Bxh6 {[%emt 0:01:11]} Nf5 {[%emt 0:01:02]} 29. Bf4 {[%emt 0:00:10]} Ne3+ {[%emt 0:00:25]} 30. Bxe3 {[%emt 0:00:25]} Bxe3 {[%emt 0:00:04]} 31. Nf4 {[%emt 0:00:15]} Bf5 {[%emt 0:02:21]} 32. h3 {[%emt 0:00:30]} Rc1+ {[%emt 0:01:30]} 33. Rxc1 {[%emt 0:00:05]} Bxc1 {[%emt 0:00:04]} 34. Kf2 {[%emt 0:00:18]} a5 {[%emt 0:00:12]} 35. e3 {[%emt 0:00:13]} a4 {[%emt 0:00:40]} 36. Ne2 {[%emt 0:00:20]} Bb2 {[%emt 0:00:32]} 37. Bf1 {[%emt 0:00:17]} a3 {[%emt 0:00:08]} 38. Nd4 {[%emt 0:00:19]} Bxd4 {[%emt 0:00:48]} 39. Bc4+ {[%emt 0:00:31]} Kf8 {[%emt 0:00:05]} 40. exd4 {[%emt 0:00:00]} Ke7 {[%emt 0:00:00]} 41. d5 {[%emt 0:02:11]} cxd5 {[%emt 0:00:19]} 42. Bxd5 {[%emt 0:00:03]} Be6 {[%emt 0:00:05]} 0-1

[Event "XXVII RUS-chT Women 2020"]
[Site "Sochi"]
[Date "2020.11.23"]
[Round "5.23"]
[White "Dorokhina, Elizaveta"]
[Black "Zavivaeva, Emilia"]
[Result "1-0"]
[ECO "B31"]
[WhiteElo "1824"]
[BlackElo "1790"]
[Annotator "NA"]
[PlyCount "63"]
[EventDate "2020.11.19"]
[EventType "team-tourn"]
[EventCountry "RUS"]
[SourceTitle "playchess.com"]
[Source "ChessBase"]
[SourceQuality "1"]
[TimeControl "40/5400+30:1800+30"]

1. e4 {[%emt 0:00:08]} c5 {[%emt 0:00:15]} 2. Nf3 {[%emt 0:01:32]} Nc6 {[%emt 0:00:34]} 3. Bb5 {[%emt 0:01:32]} g6 {[%emt 0:00:26]} 4. O-O {[%emt 0:03:25]} Bg7 {[%emt 0:00:03]} 5. Re1 {[%emt 0:00:38]} e5 {[%emt 0:00:20]} 6. c3 {[%emt 0:02:21]} Nge7 {[%emt 0:00:35]} 7. d4 {[%emt 0:01:34]} cxd4 {[%emt 0:00:35]} 8. cxd4 {[%emt 0:00:40]} Nxd4 {[%emt 0:00:12]} 9. Nxd4 {[%emt 0:00:31]} exd4 {[%emt 0:00:02]} 10. Bg5 {[%emt 0:02:11]} O-O {[%emt 0:01:04]} 11. e5 {[%emt 0:01:32]} h6 {[%emt 0:01:54]} 12. Bf6 {[%emt 0:21:38]} Bxf6 {[%emt 0:01:40]} 13. exf6 {[%emt 0:00:08]} Nc6 {[%emt 0:00:23]} 14. Qf3 {[%emt 0:01:49]} Qb6 {[%emt 0:01:36]} 15. Na3 {[%emt 0:00:45]} a6 {[%emt 0:00:44]} 16. Bd3 {[%emt 0:01:39]} d6 {[%emt 0:05:57]} 17. Nc4 {[%emt 0:03:54]} Qc5 {[%emt 0:02:47]} 18. Rac1 {[%emt 0:08:58]} Qg5 {[%emt 0:06:50]} 19. Be4 {[%emt 0:14:05]} Ne5 {[%emt 0:04:08]} 20. Nxe5 {[%emt 0:01:35]} dxe5 {[%emt 0:00:07]} 21. Rc7 {[%emt 0:04:21]} Rb8 {[%emt 0:29:26]} 22. h4 {[%emt 0:07:42]} Qxh4 {[%emt 0:05:58]} 23. Bxg6 {[%emt 0:01:42]} Bg4 {[%emt 0:04:18]} 24. Qe4 {[%emt 0:03:34]} Qg5 {[%emt 0:06:02]} 25. Bxf7+ {[%emt 0:03:29]} Rxf7 {[%emt 0:00:40]} 26. Rxf7 {[%emt 0:00:07]} Kxf7 {[%emt 0:00:14]} 27. Qh7+ {[%emt 0:00:08]} Kxf6 {[%emt 0:00:22]} 28. f4 {[%emt 0:00:28]} Qg6 {[%emt 0:10:18]} 29. fxe5+ {[%emt 0:03:57]} Kg5 {[%emt 0:00:42]} 30. Qe7+ {[%emt 0:00:18]} Kh5 {[%emt 0:00:25]} 31. g3 {[%emt 0:03:25]} d3 {[%emt 0:01:25]} 32. Qh4# {[%emt 0:00:16]} 1-0

[Event "XXVII RUS-chT Women 2020"]
[Site "Sochi"]
[Date "2020.11.23"]
[Round "5.24"]
[White "Zavivaeva, Evelina"]
[Black "Tinina, Kristina"]
[Result "1/2-1/2"]
[ECO "B22"]
[WhiteElo "1589"]
[BlackElo "1678"]
[Annotator "NA"]
[PlyCount "110"]
[EventDate "2020.11.19"]
[EventType "team-tourn"]
[EventCountry "RUS"]
[SourceTitle "playchess.com"]
[Source "ChessBase"]
[SourceQuality "1"]
[TimeControl "40/5400+30:1800+30"]

1. e4 {[%emt 0:00:00]} c5 {[%emt 0:00:01]} 2. c3 {[%emt 0:00:00]} Nf6 {[%emt 0:00:46]} 3. e5 {[%emt 0:00:18]} Nd5 {[%emt 0:00:32]} 4. d4 {[%emt 0:00:19]} cxd4 {[%emt 0:02:21]} 5. Nf3 {[%emt 0:00:29]} Nc6 {[%emt 0:03:04]} 6. cxd4 {[%emt 0:00:21]} d6 {[%emt 0:12:01]} 7. Bc4 {[%emt 0:00:20]} e6 {[%emt 0:11:43]} 8. O-O {[%emt 0:01:32]} Nb6 {[%emt 0:08:24]} 9. Bb5 {[%emt 0:00:23]} Bd7 {[%emt 0:01:11]} 10. Nc3 {[%emt 0:00:42]} dxe5 {[%emt 0:15:59]} 11. Nxe5 {[%emt 0:01:00]} Be7 {[%emt 0:02:57]} 12. Qg4 {[%emt 0:06:28]} Bf6 {[%emt 0:03:52]} 13. Nxd7 {[%emt 0:01:10]} Nxd7 {[%emt 0:03:57]} 14. d5 {[%emt 0:21:48]} Nce5 {[%emt 0:22:52]} 15. Qh3 {[%emt 0:27:27]} a6 {[%emt 0:03:34]} 16. dxe6 {[%emt 0:01:36]} axb5 {[%emt 0:01:52]} 17. exd7+ Qxd7 {[%emt 0:00:48]} 18. Qxd7+ {[%emt 0:02:32]} Nxd7 {[%emt 0:01:26]} 19. Re1+ {[%emt 0:00:53]} Kf8 {[%emt 0:00:02]} 20. Nxb5 {[%emt 0:00:25]} h5 {[%emt 0:00:36]} 21. Nc7 {[%emt 0:05:34]} Rc8 {[%emt 0:00:13]} 22. Bf4 {[%emt 0:01:07]} g5 {[%emt 0:00:38]} 23. Bd6+ {[%emt 0:10:23]} Kg7 {[%emt 0:00:01]} 24. Re2 {[%emt 0:00:51]} Nb6 {[%emt 0:01:03]} 25. Rc1 {[%emt 0:01:36]} Rhd8 {[%emt 0:01:04]} 26. Rd2 {[%emt 0:12:20]} Na8 {[%emt 0:00:21]} 27. Rdc2 {[%emt 0:00:53]} Rxd6 {[%emt 0:01:07]} 28. Ne6+ {[%emt 0:00:26]} Rxe6 {[%emt 0:00:05]} 29. Rxc8 {[%emt 0:00:15]} Nb6 {[%emt 0:00:15]} 30. R8c7 {[%emt 0:00:42]} Bxb2 {[%emt 0:01:08]} 31. Rb1 {[%emt 0:01:00]} Nd5 {[%emt 0:00:42]} 32. Rxb7 {[%emt 0:00:29]} Bf6 {[%emt 0:00:12]} 33. Ra7 {[%emt 0:01:41]} Nc3 {[%emt 0:00:23]} 34. Rf1 {[%emt 0:00:29]} Re2 {[%emt 0:00:08]} 35. a4 {[%emt 0:01:18]} Ra2 {[%emt 0:00:19]} 36. a5 {[%emt 0:00:31]} Bd4 {[%emt 0:00:28]} 37. Rd7 {[%emt 0:00:34]} Rxa5 {[%emt 0:00:22]} 38. g3 {[%emt 0:00:34]} Bf6 {[%emt 0:01:48]} 39. Kg2 {[%emt 0:00:30]} Rf5 {[%emt 0:00:26]} 40. h3 {[%emt 0:00:00]} Ne4 {[%emt 0:00:00]} 41. f3 {[%emt 0:01:00]} Nc5 {[%emt 0:01:04]} 42. Rc7 {[%emt 0:01:15]} Ne6 {[%emt 0:00:58]} 43. Rb7 {[%emt 0:00:40]} Ra5 {[%emt 0:01:27]} 44. Rf2 {[%emt 0:01:43]} Nd4 {[%emt 0:02:08]} 45. Rd7 {[%emt 0:05:44]} Ra3 {[%emt 0:01:59]} 46. Rd5 {[%emt 0:05:15]} Kg6 {[%emt 0:00:30]} 47. Rd6 {[%emt 0:06:27]} Nf5 {[%emt 0:00:30]} 48. Rc6 {[%emt 0:00:44]} Kg7 {[%emt 0:02:06]} 49. Rc5 {[%emt 0:03:40]} Kg6 {[%emt 0:04:40]} 50. Rc6 {[%emt 0:00:13]} h4 {[%emt 0:03:31]} 51. g4 {[%emt 0:04:21]} Ne3+ {[%emt 0:03:28]} 52. Kh2 {[%emt 0:00:53]} Nd5 {[%emt 0:00:33]} 53. Rc5 {[%emt 0:03:58]} Be5+ {[%emt 0:02:59]} 54. Kg1 {[%emt 0:01:39]} Ra1+ {[%emt 0:00:17]} 55. Kg2 {[%emt 0:00:31]} Ne3# {[%emt 0:00:08]} 1/2-1/2

[Event "XXVII RUS-chT Women 2020"]
[Site "Sochi"]
[Date "2020.11.25"]
[Round "6.22"]
[White "Vifleemskaia, Svetlana"]
[Black "Baiburina, Kamilla"]
[Result "1/2-1/2"]
[ECO "A40"]
[WhiteElo "1911"]
[BlackElo "1805"]
[Annotator "NA"]
[PlyCount "88"]
[EventDate "2020.11.19"]
[EventType "team-tourn"]
[EventCountry "RUS"]
[SourceTitle "playchess.com"]
[Source "ChessBase"]
[SourceQuality "1"]
[TimeControl "40/5400+30:1800+30"]

1. d4 {[%emt 0:00:00]} e6 {[%emt 0:00:00]} 2. c4 {[%emt 0:00:00]} b6 {[%emt 0:00:00]} 3. a3 {[%emt 0:01:11]} Bb7 {[%emt 0:00:04]} 4. Nc3 {[%emt 0:00:42]} Nf6 {[%emt 0:00:23]} 5. d5 {[%emt 0:01:33]} d6 {[%emt 0:07:46]} 6. e4 {[%emt 0:04:41]} Nbd7 {[%emt 0:03:47]} 7. Nge2 {[%emt 0:07:24]} g6 {[%emt 0:03:33]} 8. Ng3 {[%emt 0:05:31]} Bg7 {[%emt 0:02:40]} 9. Be2 {[%emt 0:03:38]} O-O {[%emt 0:02:07]} 10. O-O {[%emt 0:08:41]} Re8 {[%emt 0:05:11]} 11. Be3 {[%emt 0:12:13]} Qe7 {[%emt 0:07:17]} 12. Bd4 {[%emt 0:12:25]} a5 {[%emt 0:06:55]} 13. b4 {[%emt 0:07:40]} axb4 {[%emt 0:08:05]} 14. axb4 {[%emt 0:01:00]} Rxa1 {[%emt 0:08:11]} 15. Qxa1 {[%emt 0:00:05]} Ra8 {[%emt 0:00:11]} 16. Qb2 {[%emt 0:00:41]} h5 {[%emt 0:03:23]} 17. f3 {[%emt 0:06:38]} Qf8 {[%emt 0:02:45]} 18. Ra1 {[%emt 0:01:13]} Rxa1+ {[%emt 0:04:49]} 19. Qxa1 {[%emt 0:00:06]} Ne8 {[%emt 0:01:50]} 20. Nb5 {[%emt 0:00:56]} Bxd4+ {[%emt 0:02:53]} 21. Qxd4 {[%emt 0:00:27]} Ba6 {[%emt 0:02:43]} 22. Nc3 {[%emt 0:02:11]} Qg7 {[%emt 0:02:32]} 23. Qxg7+ {[%emt 0:01:26]} Kxg7 {[%emt 0:01:31]} 24. Nf1 {[%emt 0:04:11]} Nef6 {[%emt 0:05:10]} 25. Kf2 {[%emt 0:01:00]} Kf8 {[%emt 0:05:58]} 26. h4 {[%emt 0:01:11]} exd5 {[%emt 0:02:23]} 27. exd5 {[%emt 0:02:53]} Ne5 {[%emt 0:01:41]} 28. Nd2 {[%emt 0:02:17]} Ke7 {[%emt 0:02:40]} 29. Ke3 {[%emt 0:00:22]} Bb7 {[%emt 0:02:08]} 30. g3 {[%emt 0:09:37]} Ned7 {[%emt 0:01:27]} 31. f4 {[%emt 0:00:37]} Nb8 {[%emt 0:01:10]} 32. Nb5 {[%emt 0:01:08]} Kd8 {[%emt 0:00:37]} 33. Kd4 {[%emt 0:00:53]} Ba6 {[%emt 0:00:29]} 34. Na3 {[%emt 0:00:53]} c5+ {[%emt 0:00:51]} 35. dxc6 {[%emt 0:01:01]} Nxc6+ {[%emt 0:00:03]} 36. Kc3 {[%emt 0:00:04]} Ne7 {[%emt 0:00:54]} 37. Bd3 {[%emt 0:00:48]} d5 {[%emt 0:01:26]} 38. b5 {[%emt 0:00:22]} Bb7 {[%emt 0:00:23]} 39. Kd4 {[%emt 0:00:27]} Nd7 {[%emt 0:01:06]} 40. Nb3 {[%emt 0:00:00]} dxc4 {[%emt 0:00:00]} 41. Nxc4 {[%emt 0:01:02]} Bd5 {[%emt 0:04:16]} 42. Nbd2 {[%emt 0:07:20]} Kc7 {[%emt 0:02:25]} 43. Ne3 {[%emt 0:02:32]} Bb7 {[%emt 0:01:18]} 44. f5 {[%emt 0:01:45]} gxf5 {[%emt 0:08:58]} 1/2-1/2

[Event "XXVII RUS-chT Women 2020"]
[Site "Sochi"]
[Date "2020.11.25"]
[Round "6.24"]
[White "Zavivaeva, Evelina"]
[Black "Absalyamova, Karina"]
[Result "0-1"]
[ECO "C01"]
[WhiteElo "1589"]
[BlackElo "1884"]
[Annotator "NA"]
[PlyCount "80"]
[EventDate "2020.11.19"]
[EventType "team-tourn"]
[EventCountry "RUS"]
[SourceTitle "playchess.com"]
[Source "ChessBase"]
[SourceQuality "1"]
[TimeControl "40/5400+30:1800+30"]

1. e4 {[%emt 0:00:00]} e6 {[%emt 0:00:00]} 2. d4 {[%emt 0:00:00]} d5 {[%emt 0:00:00]} 3. exd5 {[%emt 0:00:00]} exd5 {[%emt 0:00:00]} 4. Nf3 {[%emt 0:00:04]} Bd6 {[%emt 0:00:00]} 5. Bd3 {[%emt 0:00:08]} Nc6 {[%emt 0:00:01]} 6. O-O {[%emt 0:00:27]} Nge7 {[%emt 0:00:11]} 7. c3 {[%emt 0:00:26]} Bg4 {[%emt 0:00:28]} 8. Bg5 {[%emt 0:00:17]} f6 {[%emt 0:00:27]} 9. Bh4 {[%emt 0:00:15]} Qd7 {[%emt 0:00:20]} 10. Nbd2 {[%emt 0:00:41]} O-O-O {[%emt 0:02:17]} 11. b4 {[%emt 0:13:36]} Nf5 {[%emt 0:07:51]} 12. Bg3 {[%emt 0:00:49]} Nxg3 {[%emt 0:00:53]} 13. hxg3 {[%emt 0:00:57]} h5 {[%emt 0:01:10]} 14. b5 {[%emt 0:00:59]} Ne7 {[%emt 0:00:21]} 15. Qa4 {[%emt 0:01:02]} Kb8 {[%emt 0:00:17]} 16. c4 {[%emt 0:20:05]} dxc4 {[%emt 0:01:12]} 17. Qxc4 {[%emt 0:02:16]} Be6 {[%emt 0:12:14]} 18. Qc2 {[%emt 0:02:51]} Nd5 {[%emt 0:01:48]} 19. a3 {[%emt 0:12:23]} g5 {[%emt 0:05:39]} 20. Ne4 {[%emt 0:02:47]} h4 {[%emt 0:03:49]} 21. Nc5 {[%emt 0:07:28]} Bxc5 {[%emt 0:00:41]} 22. dxc5 hxg3 {[%emt 0:04:00]} 23. Rfe1 {[%emt 0:09:59]} Nf4 {[%emt 0:07:29]} 24. Be4 {[%emt 0:03:55]} f5 {[%emt 0:04:20]} 25. Rad1 {[%emt 0:08:22]} Qh7 {[%emt 0:05:50]} 26. Rxd8+ Rxd8 {[%emt 0:00:18]} 27. fxg3 {[%emt 0:01:12]} fxe4 {[%emt 0:11:27]} 28. gxf4 {[%emt 0:03:02]} g4 {[%emt 0:05:05]} 29. Ng5 {[%emt 0:00:53]} Qh4 {[%emt 0:01:08]} 30. Qxe4 {[%emt 0:05:51]} Bf5 {[%emt 0:04:55]} 31. Qe7 {[%emt 0:01:31]} Rh8 {[%emt 0:00:58]} 32. Nf7 {[%emt 0:01:58]} Qh2+ {[%emt 0:00:51]} 33. Kf1 {[%emt 0:00:38]} Bd3+ {[%emt 0:12:01]} 34. Kf2 {[%emt 0:00:14]} Qxf4+ {[%emt 0:00:06]} 35. Kg1 {[%emt 0:00:31]} Rc8 {[%emt 0:03:45]} 36. Qe3 {[%emt 0:01:11]} Qxf7 {[%emt 0:01:38]} 37. Qxd3 {[%emt 0:00:16]} Qh5 {[%emt 0:00:21]} 38. c6 {[%emt 0:01:07]} Rh8 {[%emt 0:01:38]} 39. Qe4 {[%emt 0:00:42]} g3 {[%emt 0:01:07]} 40. Kf1 {[%emt 0:00:00]} Rf8+ {[%emt 0:00:00]} 0-1

[Event "XXVII RUS-chT Women 2020"]
[Site "Sochi"]
[Date "2020.11.26"]
[Round "7.20"]
[White "Lesnykh, Zhanna"]
[Black "Zavivaeva, Evelina"]
[Result "1-0"]
[ECO "C89"]
[WhiteElo "1755"]
[BlackElo "1589"]
[Annotator "NA"]
[PlyCount "100"]
[EventDate "2020.11.19"]
[EventType "team-tourn"]
[EventCountry "RUS"]
[SourceTitle "playchess.com"]
[Source "ChessBase"]
[SourceQuality "1"]
[TimeControl "40/5400+30:1800+30"]

1. e4 {[%emt 0:00:00]} e5 {[%emt 0:00:00]} 2. Nf3 {[%emt 0:00:00]} Nc6 {[%emt 0:00:00]} 3. Bb5 {[%emt 0:00:00]} a6 {[%emt 0:00:11]} 4. Ba4 {[%emt 0:00:00]} Nf6 {[%emt 0:00:06]} 5. O-O {[%emt 0:00:00]} Be7 {[%emt 0:00:04]} 6. Re1 {[%emt 0:00:07]} b5 {[%emt 0:00:12]} 7. Bb3 {[%emt 0:00:05]} O-O {[%emt 0:00:04]} 8. c3 {[%emt 0:05:31]} d5 9. exd5 {[%emt 0:00:11]} Nxd5 {[%emt 0:00:32]} 10. Nxe5 {[%emt 0:00:15]} Nxe5 {[%emt 0:00:28]} 11. Rxe5 {[%emt 0:00:06]} c6 {[%emt 0:00:09]} 12. d4 {[%emt 0:04:35]} Bd6 13. Re1 {[%emt 0:00:57]} Qh4 {[%emt 0:00:32]} 14. g3 {[%emt 0:01:08]} Qh3 {[%emt 0:00:23]} 15. Qf3 {[%emt 0:02:30]} Bf5 {[%emt 0:03:18]} 16. Be3 {[%emt 0:09:20]} Rae8 17. Nd2 {[%emt 0:08:35]} Bg4 {[%emt 0:16:20]} 18. Qg2 {[%emt 0:00:24]} Qh5 {[%emt 0:00:24]} 19. a4 {[%emt 0:19:13]} Re6 {[%emt 0:31:20]} 20. axb5 {[%emt 0:09:51]} axb5 {[%emt 0:00:39]} 21. Bxd5 {[%emt 0:09:26]} cxd5 {[%emt 0:04:28]} 22. Ra5 {[%emt 0:07:12]} Rb8 {[%emt 0:22:12]} 23. Rea1 {[%emt 0:06:54]} Ree8 {[%emt 0:05:57]} 24. Ra6 {[%emt 0:04:59]} Re6 {[%emt 0:00:55]} 25. Ra8 {[%emt 0:07:30]} Ree8 {[%emt 0:00:23]} 26. Rxb8 {[%emt 0:00:23]} Rxb8 {[%emt 0:00:09]} 27. Qf1 {[%emt 0:02:09]} b4 {[%emt 0:01:30]} 28. Qa6 {[%emt 0:00:48]} Qg6 {[%emt 0:02:14]} 29. Qc6 {[%emt 0:01:03]} bxc3 30. bxc3 {[%emt 0:00:25]} Qe6 {[%emt 0:08:15]} 31. Ra6 {[%emt 0:00:50]} Bf8 {[%emt 0:00:54]} 32. Qxe6 {[%emt 0:00:24]} Bxe6 {[%emt 0:00:44]} 33. Rc6 {[%emt 0:00:43]} Ra8 {[%emt 0:00:24]} 34. Kg2 {[%emt 0:00:22]} g6 {[%emt 0:01:02]} 35. Bf4 {[%emt 0:00:28]} Ra2 {[%emt 0:00:31]} 36. Nf3 {[%emt 0:00:40]} Rc2 {[%emt 0:00:27]} 37. Ne1 {[%emt 0:00:14]} Re2 {[%emt 0:00:57]} 38. Kf1 {[%emt 0:00:20]} Ra2 {[%emt 0:00:29]} 39. Kg2 {[%emt 0:00:22]} Re2 {[%emt 0:00:08]} 40. Nf3 {[%emt 0:00:00]} Rc2 {[%emt 0:00:00]} 41. h3 {[%emt 0:04:15]} Bf5 {[%emt 0:05:34]} 42. g4 {[%emt 0:01:37]} Be4 {[%emt 0:00:35]} 43. Rc8 {[%emt 0:03:26]} Kg7 {[%emt 0:03:35]} 44. g5 {[%emt 0:05:33]} Kg8 {[%emt 0:12:38]} 45. Bd6 {[%emt 0:01:56]} Bxf3+ {[%emt 0:00:09]} 46. Kxf3 {[%emt 0:01:12]} Rxc3+ {[%emt 0:00:18]} 47. Rxc3 {[%emt 0:00:05]} Bxd6 {[%emt 0:00:07]} 48. Rc8+ {[%emt 0:00:50]} Kg7 {[%emt 0:00:20]} 49. Rd8 {[%emt 0:00:11]} Be7 {[%emt 0:00:13]} 50. Rxd5 {[%emt 0:00:02]} Kf8 {[%emt 0:00:21]} 1-0

[Event "XXVII RUS-chT Women 2020"]
[Site "Sochi"]
[Date "2020.11.27"]
[Round "8.23"]
[White "Zavivaeva, Emilia"]
[Black "Vasilevich, Irina"]
[Result "0-1"]
[ECO "A40"]
[WhiteElo "1790"]
[BlackElo "2258"]
[Annotator "NA RC"]
[PlyCount "78"]
[EventDate "2020.11.19"]
[EventType "team-tourn"]
[EventCountry "RUS"]
[SourceTitle "playchess.com"]
[Source "ChessBase"]
[SourceQuality "1"]
[TimeControl "40/5400+30:1800+30"]

1. d4 {[%emt 0:00:12]} b6 {[%emt 0:03:13]} 2. Nf3 {[%emt 0:00:17]} Bb7 {[%emt 0:00:06]} 3. e3 {[%emt 0:00:10]} Nf6 {[%emt 0:04:36]} 4. Bd3 {[%emt 0:02:24]} d6 {[%emt 0:08:48]} 5. O-O {[%emt 0:01:11]} Nbd7 {[%emt 0:00:13]} 6. c4 {[%emt 0:06:20]} e5 {[%emt 0:02:18]} 7. Bc2 {[%emt 0:03:59]} Be7 {[%emt 0:03:23]} 8. Nc3 {[%emt 0:03:21]} O-O {[%emt 0:00:37]} 9. Qe2 {[%emt 0:08:13]} Re8 {[%emt 0:07:38]} 10. b3 {[%emt 0:07:47]} Nf8 {[%emt 0:18:47]} 11. Bb2 $14 {[%emt 0:08:27]} Ng6 {[%emt 0:16:12]} 12. Rad1 {[%emt 0:10:23]} Nd7 {[%emt 0:07:02]} 13. d5 {[%emt 0:07:26]} a6 {[%emt 0:02:10]} 14. a4 {[%emt 0:05:23]} a5 {[%emt 0:00:40]} 15. Nd2 {[%emt 0:00:55]} Bc8 {[%emt 0:02:37]} 16. f4 {[%emt 0:02:47]} exf4 {[%emt 0:02:28]} 17. exf4 {[%emt 0:00:33]} Bf6 {[%emt 0:01:52]} 18. Qh5 {[%emt 0:02:17]} Nc5 {[%emt 0:01:48]} 19. Rde1 {[%emt 0:05:13]} Bd7 {[%emt 0:00:42]} 20. Ba1 {[%emt 0:09:46]} Bd4+ {[%emt 0:07:28]} 21. Kh1 {[%emt 0:00:19]} Rxe1 {[%emt 0:02:29]} 22. Rxe1 {[%emt 0:00:04]} Qh4 {[%emt 0:00:08]} 23. Qxh4 {[%emt 0:04:56]} Nxh4 {[%emt 0:00:02]} 24. Bb2 {[%emt 0:04:07]} Kf8 {[%emt 0:00:50]} 25. g3 {[%emt 0:02:28]} Nf5 {[%emt 0:00:30]} 26. Nf3 {[%emt 0:01:15]} Bf6 {[%emt 0:01:24]} 27. Nd1 {[%emt 0:01:06]} Bxb2 {[%emt 0:01:01]} 28. Nxb2 {[%emt 0:00:02]} Re8 {[%emt 0:01:45]} 29. Rxe8+ {[%emt 0:00:45]} Kxe8 {[%emt 0:00:02]} 30. Nd1 {[%emt 0:00:31]} h5 {[%emt 0:02:34]} 31. Kg2 {[%emt 0:00:46]} Ke7 {[%emt 0:00:28]} 32. h3 {[%emt 0:00:21]} f6 {[%emt 0:01:02]} 33. Kf2 {[%emt 0:01:34]} Nh6 {[%emt 0:00:20]} 34. Kg2 {[%emt 0:00:22]} Bf5 {[%emt 0:00:34]} 35. Bxf5 {[%emt 0:01:17]} Nxf5 {[%emt 0:00:02]} 36. g4 {[%emt 0:00:12]} hxg4 {[%emt 0:00:03]} 37. hxg4 {[%emt 0:00:12]} Nh6 {[%emt 0:00:01]} 38. Ne3 {[%emt 0:01:00]} Nxb3 {[%emt 0:01:33]} 39. f5 Nf7 {[%emt 0:01:11]} 0-1